[Event "CZE-ch Youth B14 2022"]
[Site "Luhacovice"]
[Date "2022.03.16"]
[Round "6.2"]
[White "Hladky, Tadeas"]
[Black "Soucek, Jan"]
[Result "1-0"]
[ECO "C05"]
[WhiteElo "2029"]
[BlackElo "1849"]
[Annotator "ChessBase"]
[PlyCount "63"]
[EventDate "2022.03.12"]
[EventType "swiss"]
[EventCountry "CZE"]
[SourceTitle "playchess.com"]
[Source "ChessBase"]
[SourceQuality "1"]
[TimeControl "40/5400+30:1800+30"]

1. e4 {[%emt 0:00:04]} e6 {[%emt 0:00:52]} 2. d4 {[%emt 0:00:07]} d5 {[%emt 0:00:05]} 3. Nd2 {[%emt 0:00:28]} Nf6 {[%emt 0:00:13]} 4. e5 {[%emt 0:00:07]} Nfd7 {[%emt 0:00:02]} 5. Bd3 {[%emt 0:00:19]} c5 {[%emt 0:00:08]} 6. c3 {[%emt 0:00:04]} b6 {[%emt 0:00:04]} 7. Qe2 {[%emt 0:07:01]} cxd4 {[%emt 0:01:41]} 8. cxd4 {[%emt 0:00:22]} Nc6 {[%emt 0:00:14]} 9. Ndf3 {[%emt 0:01:28]} Nb4 {[%emt 0:00:47]} 10. a3 {[%emt 0:03:53]} Nxd3+ {[%emt 0:00:46]} 11. Qxd3 {[%emt 0:00:04]} Be7 {[%emt 0:13:21]} 12. Nh3 {[%emt 0:03:00]} a5 {[%emt 0:01:49]} 13. Nfg5 {[%emt 0:09:32]} g6 {[%emt 0:36:27]} 14. Qf3 {[%emt 0:03:11]} O-O {[%emt 0:00:18]} 15. O-O {[%emt 0:02:12]} h6 {[%emt 0:07:36]} 16. Nxe6 {[%emt 0:00:50]} fxe6 {[%emt 0:00:08]} 17. Qg4 {[%emt 0:00:06]} Kh7 {[%emt 0:08:55]} 18. Nf4 {[%emt 0:02:43]} Rg8 {[%emt 0:08:39]} 19. Nxe6 {[%emt 0:03:19]} Qe8 {[%emt 0:12:29]} 20. Nc7 {[%emt 0:02:46]} Qf8 {[%emt 0:01:22]} 21. Nxa8 {[%emt 0:00:47]} Nxe5 {[%emt 0:04:01]} 22. Qg3 {[%emt 0:00:02]} Nf7 {[%emt 0:00:51]} 23. Nxb6 {[%emt 0:00:38]} Ba6 {[%emt 0:00:33]} 24. Re1 {[%emt 0:00:35]} Qd8 {[%emt 0:00:37]} 25. Nxd5 {[%emt 0:01:52]} Bd6 {[%emt 0:00:01]} 26. Bf4 {[%emt 0:00:07]} Bxf4 {[%emt 0:00:44]} 27. Nxf4 {[%emt 0:00:34]} Qxd4 {[%emt 0:00:02]} 28. Ne6 {[%emt 0:00:47]} Qxb2 {[%emt 0:00:21]} 29. Qc7 {[%emt 0:00:06]} Qf6 {[%emt 0:00:20]} 30. Nc5 {[%emt 0:01:28]} Rc8 {[%emt 0:01:12]} 31. Qe7 {[%emt 0:02:06]} Qf5 {[%emt 0:00:47]} 32. Nxa6 {[%emt 0:00:06]} 1-0

[Event "CZE-ch Youth B14 2022"]
[Site "Luhacovice"]
[Date "2022.03.16"]
[Round "6.3"]
[White "Buchta, Bartolomej"]
[Black "Brozka, Karel"]
[Result "1-0"]
[ECO "B32"]
[WhiteElo "1901"]
[BlackElo "2125"]
[Annotator "ChessBase"]
[PlyCount "94"]
[EventDate "2022.03.12"]
[EventType "swiss"]
[EventCountry "CZE"]
[SourceTitle "playchess.com"]
[Source "ChessBase"]
[SourceQuality "1"]
[TimeControl "40/5400+30:1800+30"]

1. e4 {[%emt 0:00:02]} c5 {[%emt 0:00:14]} 2. Nf3 {[%emt 0:00:07]} Nc6 {[%emt 0:00:09]} 3. d4 {[%emt 0:00:05]} cxd4 {[%emt 0:00:05]} 4. Nxd4 {[%emt 0:00:04]} e5 {[%emt 0:00:09]} 5. Nb5 {[%emt 0:00:27]} d6 {[%emt 0:00:15]} 6. N1c3 {[%emt 0:00:34]} a6 {[%emt 0:00:17]} 7. Na3 {[%emt 0:00:07]} Be7 {[%emt 0:00:14]} 8. Nc4 {[%emt 0:00:19]} b5 {[%emt 0:00:08]} 9. Ne3 {[%emt 0:00:07]} Nf6 {[%emt 0:00:45]} 10. Ned5 {[%emt 0:07:27]} Be6 {[%emt 0:01:44]} 11. Be3 {[%emt 0:05:52]} Rb8 {[%emt 0:00:36]} 12. Nxf6+ {[%emt 0:02:25]} Bxf6 {[%emt 0:01:56]} 13. a4 {[%emt 0:04:54]} Nd4 {[%emt 0:22:39]} 14. axb5 {[%emt 0:12:26]} axb5 {[%emt 0:02:09]} 15. Bxd4 {[%emt 0:05:56]} exd4 {[%emt 0:00:13]} 16. Nxb5 {[%emt 0:10:33]} Qb6 {[%emt 0:02:16]} 17. Ra6 {[%emt 0:11:05]} Qc5 {[%emt 0:00:55]} 18. Nxd6+ {[%emt 0:00:18]} Ke7 {[%emt 0:01:59]} 19. Bd3 {[%emt 0:03:48]} Rhd8 {[%emt 0:10:46]} 20. Nf5+ {[%emt 0:02:29]} Bxf5 {[%emt 0:09:14]} 21. exf5 {[%emt 0:00:12]} Qb4+ {[%emt 0:05:11]} 22. Qd2 {[%emt 0:00:45]} Qxd2+ {[%emt 0:01:37]} 23. Kxd2 {[%emt 0:00:04]} Rxb2 {[%emt 0:00:29]} 24. Ra7+ {[%emt 0:09:33]} Rd7 {[%emt 0:17:22]} 25. Rxd7+ {[%emt 0:03:22]} Kxd7 {[%emt 0:00:01]} 26. Bc4 {[%emt 0:00:25]} Ke7 {[%emt 0:01:23]} 27. Bb3 {[%emt 0:03:03]} g6 {[%emt 0:01:26]} 28. fxg6 {[%emt 0:00:36]} fxg6 {[%emt 0:00:53]} 29. Rd1 {[%emt 0:02:52]} Bg5+ {[%emt 0:00:56]} 30. Kd3 {[%emt 0:00:14]} Bf6 {[%emt 0:00:04]} 31. g3 {[%emt 0:01:36]} Kd6 {[%emt 0:02:27]} 32. Kd2 {[%emt 0:02:00]} Bg5+ {[%emt 0:00:04]} 33. f4 {[%emt 0:00:30]} Bf6 {[%emt 0:00:16]} 34. Kc1 {[%emt 0:00:43]} d3 {[%emt 0:00:14]} 35. Rxd3+ {[%emt 0:00:04]} Ke7 {[%emt 0:00:23]} 36. Rd5 {[%emt 0:01:08]} h5 {[%emt 0:00:38]} 37. Re5+ {[%emt 0:02:48]} Bxe5 {[%emt 0:01:10]} 38. fxe5 {[%emt 0:00:05]} Rxb3 {[%emt 0:00:02]} 39. cxb3 {[%emt 0:00:06]} Ke6 {[%emt 0:00:13]} 40. Kd2 {[%emt 0:00:40]} Kxe5 {[%emt 0:00:06]} 41. Ke3 {[%emt 0:30:53]} g5 {[%emt 0:30:03]} 42. h3 {[%emt 0:00:54]} Kd5 {[%emt 0:00:14]} 43. b4 {[%emt 0:00:09]} Kc4 {[%emt 0:00:02]} 44. Ke4 {[%emt 0:00:14]} Kxb4 {[%emt 0:00:07]} 45. Kf5 {[%emt 0:00:11]} g4 {[%emt 0:00:07]} 46. h4 {[%emt 0:02:33]} Kc5 {[%emt 0:00:04]} 47. Kg5 {[%emt 0:00:05]} Kd5 {[%emt 0:00:04]} 1-0

[Event "CZE-ch Youth B14 2022"]
[Site "Luhacovice"]
[Date "2022.03.16"]
[Round "6.4"]
[White "Siles, Jan"]
[Black "Fizer, Marek"]
[Result "0-1"]
[ECO "A02"]
[WhiteElo "1548"]
[BlackElo "1876"]
[Annotator "NA"]
[PlyCount "88"]
[EventDate "2022.03.12"]
[EventType "swiss"]
[EventCountry "CZE"]
[SourceTitle "playchess.com"]
[Source "ChessBase"]
[SourceQuality "1"]
[TimeControl "40/5400+30:1800+30"]

1. f4 {[%emt 0:00:12]} f5 {[%emt 0:00:26]} 2. Nf3 {[%emt 0:00:22]} Nf6 {[%emt 0:00:09]} 3. e3 {[%emt 0:01:54]} d6 {[%emt 0:00:32]} 4. Bc4 {[%emt 0:01:20]} d5 {[%emt 0:01:47]} 5. Be2 {[%emt 0:00:55]} g6 {[%emt 0:01:45]} 6. O-O {[%emt 0:00:20]} Bg7 {[%emt 0:00:15]} 7. c3 {[%emt 0:07:24]} (7. c4 $14 {is superior.}) 7... O-O {[%emt 0:04:26]} 8. Ne5 {[%emt 0:01:11]} b6 {[%emt 0:05:57]} 9. d4 {[%emt 0:03:08]} Nbd7 {[%emt 0:05:08]} 10. c4 {[%emt 0:21:38]} Bb7 {[%emt 0:10:55]} 11. cxd5 {[%emt 0:00:52]} Nxe5 {[%emt 0:08:02]} ({Resist} 11... Bxd5 12. Nc3 $14) 12. dxe5 {[%emt 0:02:03]} Nxd5 {[%emt 0:03:41]} 13. Qb3 {[%emt 0:03:47]} e6 {[%emt 0:01:27]} 14. Rd1 {[%emt 0:04:47]} Qe7 {[%emt 0:02:13]} 15. Bd2 {[%emt 0:09:59]} Rfd8 {[%emt 0:07:27]} 16. Nc3 {[%emt 0:01:15]} g5 {[%emt 0:13:20]} 17. Nxd5 {[%emt 0:06:32]} Bxd5 {[%emt 0:01:50]} 18. Bc4 {[%emt 0:00:20]} gxf4 {[%emt 0:03:45]} 19. Bxd5 {[%emt 0:00:36]} Rxd5 {[%emt 0:00:15]} 20. exf4 {[%emt 0:00:45]} Rad8 {[%emt 0:00:51]} 21. Be3 {[%emt 0:01:12]} Qd7 {[%emt 0:01:37]} 22. Rxd5 {[%emt 0:02:37]} Qxd5 {[%emt 0:00:08]} 23. Qxd5 {[%emt 0:00:08]} exd5 {[%emt 0:04:47]} 24. Rd1 {[%emt 0:03:09]} c5 {[%emt 0:00:56]} 25. Kf2 {[%emt 0:01:45]} d4 {[%emt 0:00:56]} 26. Bd2 {[%emt 0:00:28]} Kf7 {[%emt 0:00:38]} 27. h3 {[%emt 0:03:48]} h5 {[%emt 0:01:20]} 28. Kf3 {[%emt 0:01:03]} Ke6 {[%emt 0:00:58]} 29. g4 {[%emt 0:00:06]} hxg4+ {[%emt 0:00:40]} 30. hxg4 {[%emt 0:00:09]} Rh8 {[%emt 0:00:55]} 31. gxf5+ {[%emt 0:04:41]} Kxf5 {[%emt 0:00:07]} 32. Re1 {[%emt 0:13:05]} Rh3+ {[%emt 0:03:42]} 33. Kg2 {[%emt 0:00:43]} Rd3 {[%emt 0:00:22]} 34. Bc1 {[%emt 0:01:12]} Bf8 {[%emt 0:00:29]} 35. Kf2 {[%emt 0:02:23]} Be7 {[%emt 0:01:22]} 36. Kg2 {[%emt 0:00:27]} (36. Rh1 $17 {is the only way for White.}) 36... c4 {[%emt 0:02:50]} 37. a3 {[%emt 0:01:01]} c3 {[%emt 0:00:40]} 38. bxc3 {[%emt 0:00:53]} dxc3 {[%emt 0:03:31]} 39. Re2 {[%emt 0:00:17]} b5 {[%emt 0:01:08]} 40. e6 {[%emt 0:01:20]} Kf6 $19 {[%emt 0:03:29]} 41. Be3 {[%emt 0:11:25]} a5 {[%emt 0:02:15]} 42. Bc1 {[%emt 0:07:08]} Rd1 {[%emt 0:01:08]} 43. Rc2 {[%emt 0:02:14]} Bxa3 {[%emt 0:02:18]} 44. Bxa3 {[%emt 0:00:11]} Rd2+ 0-1

[Event "CZE-ch Youth B14 2022"]
[Site "Luhacovice"]
[Date "2022.03.16"]
[Round "6.5"]
[White "Zrubek, Dan"]
[Black "Jasso, Matej"]
[Result "1-0"]
[ECO "B99"]
[WhiteElo "1478"]
[BlackElo "1726"]
[Annotator "NA"]
[PlyCount "51"]
[EventDate "2022.03.12"]
[EventType "swiss"]
[EventCountry "CZE"]
[SourceTitle "playchess.com"]
[Source "ChessBase"]
[SourceQuality "1"]
[TimeControl "40/5400+30:1800+30"]

1. e4 {[%emt 0:00:03]} c5 {[%emt 0:00:07]} 2. Nf3 {[%emt 0:00:16]} d6 {[%emt 0:00:16]} 3. d4 {[%emt 0:00:06]} cxd4 {[%emt 0:00:08]} 4. Nxd4 {[%emt 0:00:25]} Nf6 {[%emt 0:00:09]} 5. Nc3 {[%emt 0:00:33]} a6 {[%emt 0:00:08]} 6. Bg5 {[%emt 0:00:57]} e6 {[%emt 0:00:12]} 7. f4 {[%emt 0:00:41]} Be7 {[%emt 0:00:08]} 8. Qf3 {[%emt 0:01:13]} Qc7 {[%emt 0:01:26]} 9. O-O-O {[%emt 0:02:26]} Nbd7 {[%emt 0:00:20]} 10. Be2 {[%emt 0:04:02]} b5 {[%emt 0:02:24]} 11. Bxf6 {[%emt 0:21:39]} gxf6 {[%emt 0:10:10]} 12. e5 {[%emt 0:09:21]} Bb7 {[%emt 0:03:50]} 13. Qh5 {[%emt 0:01:20]} Nc5 {[%emt 0:06:59]} 14. Bxb5+ {[%emt 0:17:00]} axb5 {[%emt 0:02:45]} 15. Ndxb5 {[%emt 0:00:22]} Qc6 {[%emt 0:02:50]} 16. exd6 {[%emt 0:02:43]} Bd8 {[%emt 0:01:30]} 17. d7+ {[%emt 0:03:56]} Ke7 {[%emt 0:02:38]} 18. Rhe1 {[%emt 0:03:39]} Nxd7 {[%emt 0:23:41]} 19. Nd6 {[%emt 0:03:58]} Rf8 {[%emt 0:03:10]} 20. Nf5+ {[%emt 0:02:06]} Ke8 {[%emt 0:00:08]} 21. Ng7+ {[%emt 0:00:54]} Ke7 {[%emt 0:00:05]} 22. Nd5+ {[%emt 0:02:34]} Qxd5 {[%emt 0:05:10]} 23. Rxd5 {[%emt 0:00:16]} Bxd5 {[%emt 0:00:09]} 24. Qxd5 {[%emt 0:01:21]} Ra5 {[%emt 0:01:13]} 25. Nf5+ {[%emt 0:01:25]} Ke8 {[%emt 0:00:52]} 26. Rxe6+ {[%emt 0:00:20]} 1-0

[Event "CZE-ch Youth B14 2022"]
[Site "Luhacovice"]
[Date "2022.03.16"]
[Round "6.6"]
[White "Setina, Vaclav"]
[Black "Juracak, David"]
[Result "1-0"]
[ECO "C42"]
[WhiteElo "1881"]
[BlackElo "1717"]
[Annotator "NA"]
[PlyCount "81"]
[EventDate "2022.03.12"]
[EventType "swiss"]
[EventCountry "CZE"]
[SourceTitle "playchess.com"]
[Source "ChessBase"]
[SourceQuality "1"]
[TimeControl "40/5400+30:1800+30"]

1. e4 {[%emt 0:00:00]} e5 {[%emt 0:00:05]} 2. Nf3 {[%emt 0:00:04]} Nf6 {[%emt 0:00:05]} 3. Nxe5 {[%emt 0:00:04]} d6 {[%emt 0:00:05]} 4. Nf3 {[%emt 0:00:06]} Nxe4 {[%emt 0:00:07]} 5. d4 {[%emt 0:00:24]} d5 {[%emt 0:00:06]} 6. Bd3 {[%emt 0:00:14]} Bf5 {[%emt 0:04:55]} 7. O-O {[%emt 0:00:20]} Be7 {[%emt 0:00:29]} 8. Re1 {[%emt 0:03:11]} O-O {[%emt 0:01:28]} 9. c4 {[%emt 0:00:54] 9.Nbd2 gains popularity.} Nc6 {[%emt 0:13:04]} 10. Nc3 {[%emt 0:10:23]} Nxc3 {[%emt 0:01:04]} 11. bxc3 {[%emt 0:00:21]} Bxd3 {[%emt 0:03:35]} 12. Qxd3 {[%emt 0:00:08]} Re8 {[%emt 0:01:38]} 13. Bf4 {[%emt 0:09:06]} dxc4 $1 {[%emt 0:04:12]} 14. Qxc4 {[%emt 0:06:54] [#]} Qd7 $146 {[%emt 0:00:34]} ({Predecessor:} 14... Bd6 $14 15. Ng5 Qf6 16. Qd3 Qg6 17. Qxg6 hxg6 18. Bxd6 cxd6 19. Ne4 Rad8 20. d5 Ne5 {0-1 (44) Bensch,P (2168)-Wegerle,J (2405) Austria 2018}) 15. d5 {[%emt 0:07:54]} Na5 {[%emt 0:14:41]} 16. Qxc7 {[%emt 0:01:50]} Qxc7 {[%emt 0:00:10]} 17. Bxc7 {[%emt 0:00:08]} Nc4 {[%emt 0:00:15]} 18. Re4 {[%emt 0:01:51]} Nd6 {[%emt 0:02:58] [#]} 19. Rxe7 $1 {[%emt 0:00:16]} Rxe7 {[%emt 0:00:13]} 20. Bxd6 {[%emt 0:00:12]} Rd7 {[%emt 0:00:04]} 21. Be5 {[%emt 0:01:25]} Rxd5 {[%emt 0:00:11]} 22. Bd4 {[%emt 0:00:14]} Re8 {[%emt 0:02:55]} 23. Bxa7 {[%emt 0:15:51]} Ra8 {[%emt 0:00:32]} 24. Bd4 {[%emt 0:03:00]} Rda5 {[%emt 0:01:13]} 25. g3 {[%emt 0:01:34]} Rxa2 {[%emt 0:00:10]} 26. Re1 {[%emt 0:00:52]} Ra1 {[%emt 0:01:20]} 27. Kg2 {[%emt 0:00:49]} Rxe1 {[%emt 0:00:41]} 28. Nxe1 {[%emt 0:00:02]} f6 {[%emt 0:00:51]} 29. Nd3 {[%emt 0:03:20]} Rd8 {[%emt 0:01:50]} 30. Kf3 {[%emt 0:02:31]} Kf7 {[%emt 0:00:14]} 31. Nc5 {[%emt 0:04:43]} b5 {[%emt 0:00:08]} 32. Ke3 {[%emt 0:02:08]} Rb8 {[%emt 0:09:54]} 33. Kd3 {[%emt 0:05:59]} Ke7 {[%emt 0:03:05]} 34. Kc2 {[%emt 0:03:10]} Kd6 {[%emt 0:10:41]} (34... Ra8 {might work better.} 35. Be3 Kd6) 35. Kb3 {[%emt 0:04:31]} Kd5 {[%emt 0:01:04]} 36. Na6 $18 {[%emt 0:00:54]} Rb7 {[%emt 0:00:13]} 37. Kb4 {[%emt 0:01:54]} Kd6 {[%emt 0:00:56]} 38. Nc5 {[%emt 0:01:08]} Rb8 {[%emt 0:00:37]} 39. Be3 {[%emt 0:00:29]} Kd5 {[%emt 0:00:41]} 40. Nb3 {[%emt 0:02:13]} Rc8 {[%emt 0:00:49]} 41. Nd4 {[%emt 0:31:09]} 1-0

[Event "CZE-ch Youth B14 2022"]
[Site "Luhacovice"]
[Date "2022.03.16"]
[Round "6.7"]
[White "Svoboda, Daniel"]
[Black "Babula, Matej"]
[Result "1-0"]
[ECO "C47"]
[WhiteElo "1619"]
[BlackElo "1753"]
[Annotator "NA"]
[PlyCount "61"]
[EventDate "2022.03.12"]
[EventType "swiss"]
[EventCountry "CZE"]
[SourceTitle "playchess.com"]
[Source "ChessBase"]
[SourceQuality "1"]
[TimeControl "40/5400+30:1800+30"]

1. e4 {[%emt 0:00:04]} e5 {[%emt 0:00:05]} 2. Nf3 {[%emt 0:00:12]} Nc6 {[%emt 0:00:02]} 3. Nc3 {[%emt 0:00:17]} Nf6 {[%emt 0:00:04]} 4. d4 {[%emt 0:00:00]} exd4 {[%emt 0:00:00]} 5. Nxd4 {[%emt 0:00:00]} Bb4 {[%emt 0:00:00]} 6. Nxc6 {[%emt 0:00:11]} bxc6 {[%emt 0:00:00]} 7. Bd3 {[%emt 0:00:48]} O-O {[%emt 0:00:00]} 8. O-O {[%emt 0:06:13]} Re8 {[%emt 0:05:41]} 9. Qf3 {[%emt 0:05:22]} Bd6 {[%emt 0:01:30]} 10. Bg5 {[%emt 0:10:50]} Be5 11. Rfd1 Rb8 {[%emt 0:04:02]} 12. Rab1 {[%emt 0:01:31]} d6 {[%emt 0:04:03]} 13. h3 {[%emt 0:02:36]} h6 {[%emt 0:13:34]} 14. Be3 {[%emt 0:12:04]} a5 {[%emt 0:01:36]} 15. Bf4 {[%emt 0:04:43]} Nh5 {[%emt 0:19:02]} 16. Bxh6 {[%emt 0:13:14]} gxh6 {[%emt 0:02:25]} 17. Qxh5 {[%emt 0:00:11]} Qf6 {[%emt 0:02:38]} 18. Ne2 {[%emt 0:08:32]} Rxb2 {[%emt 0:02:28]} 19. Rxb2 {[%emt 0:02:27]} Bxb2 {[%emt 0:28:55]} 20. Qxa5 Bxh3 {[%emt 0:00:10]} 21. gxh3 {[%emt 0:03:10]} Re5 {[%emt 0:00:06]} 22. Qd2 {[%emt 0:08:49]} Rg5+ {[%emt 0:00:56]} 23. Ng3 {[%emt 0:01:37]} Bd4 24. Kg2 h5 {[%emt 0:00:57]} 25. f4 {[%emt 0:09:07]} Rg7 {[%emt 0:00:31]} 26. Kh2 {[%emt 0:00:32]} Bb6 {[%emt 0:04:38]} 27. Nxh5 {[%emt 0:02:41]} Qh4 {[%emt 0:00:45]} 28. Nxg7 {[%emt 0:00:27]} Ba5 29. Qe3 {[%emt 0:00:56]} Bb6 {[%emt 0:02:44]} 30. Qg3 {[%emt 0:00:20]} Bg1+ {[%emt 0:00:47]} 31. Rxg1 1-0

[Event "CZE-ch Youth B14 2022"]
[Site "Luhacovice"]
[Date "2022.03.16"]
[Round "6.8"]
[White "Kubin, Tomas Daniel"]
[Black "Dusanek, Michal"]
[Result "0-1"]
[ECO "B32"]
[WhiteElo "1666"]
[BlackElo "1682"]
[Annotator "NA"]
[PlyCount "66"]
[EventDate "2022.03.12"]
[EventType "swiss"]
[EventCountry "CZE"]
[SourceTitle "playchess.com"]
[Source "ChessBase"]
[SourceQuality "1"]
[TimeControl "40/5400+30:1800+30"]

1. e4 {[%emt 0:00:05]} c5 {[%emt 0:00:10]} 2. Nf3 {[%emt 0:00:09]} Nc6 {[%emt 0:01:23]} 3. d4 {[%emt 0:00:21]} cxd4 {[%emt 0:00:11]} 4. Nxd4 {[%emt 0:00:10]} g6 {[%emt 0:01:29]} 5. Be3 {[%emt 0:00:35]} Bg7 {[%emt 0:00:18]} 6. Nc3 {[%emt 0:00:27]} Nf6 {[%emt 0:00:13]} 7. Nxc6 {[%emt 0:00:59]} bxc6 {[%emt 0:08:18]} 8. e5 {[%emt 0:01:08]} Ng8 {[%emt 0:01:06]} 9. f4 {[%emt 0:00:31]} f6 {[%emt 0:01:55]} 10. e6 {[%emt 0:03:54]} d5 {[%emt 0:07:37]} 11. f5 {[%emt 0:01:39]} Qc7 {[%emt 0:13:09]} 12. Bd3 {[%emt 0:33:23]} Qe5 {[%emt 0:12:25]} 13. Qd2 {[%emt 0:01:21]} Bh6 {[%emt 0:04:35]} 14. Kf2 {[%emt 0:04:58]} Bxe3+ {[%emt 0:04:24]} 15. Qxe3 {[%emt 0:00:47]} Qxe3+ {[%emt 0:00:22]} 16. Kxe3 {[%emt 0:00:07]} gxf5 {[%emt 0:09:59]} 17. Bxf5 {[%emt 0:01:29]} Nh6 {[%emt 0:00:31]} 18. g4 {[%emt 0:04:09]} Rg8 {[%emt 0:07:50]} 19. h3 {[%emt 0:02:55]} Rb8 {[%emt 0:04:47]} 20. Na4 {[%emt 0:07:56]} Rb4 {[%emt 0:01:51]} 21. b3 {[%emt 0:11:39]} Nxf5+ {[%emt 0:02:42]} 22. gxf5 {[%emt 0:01:21]} Rg3+ {[%emt 0:00:53]} 23. Ke2 {[%emt 0:05:55]} Rf4 {[%emt 0:03:49]} 24. Rhg1 {[%emt 0:03:38]} Rxg1 {[%emt 0:01:15]} 25. Rxg1 {[%emt 0:00:05]} Kf8 {[%emt 0:00:08]} 26. Rg3 {[%emt 0:02:53]} Rxf5 {[%emt 0:00:54]} 27. Re3 {[%emt 0:01:35]} Re5 {[%emt 0:03:25]} 28. Nc5 {[%emt 0:03:03]} Ke8 {[%emt 0:04:31]} 29. Kf3 {[%emt 0:03:04]} Kd8 {[%emt 0:01:06]} 30. Kf4 {[%emt 0:01:25]} Rxe3 {[%emt 0:00:24]} 31. Kxe3 {[%emt 0:00:07]} Kc7 {[%emt 0:00:09]} 32. Kf4 {[%emt 0:01:55]} Kd6 {[%emt 0:00:39]} 33. b4 {[%emt 0:01:36]} Bxe6 {[%emt 0:00:15]} 0-1

[Event "CZE-ch Youth B14 2022"]
[Site "Luhacovice"]
[Date "2022.03.16"]
[Round "6.9"]
[White "Davidek, Zdenek"]
[Black "Tesar, Jakub"]
[Result "1/2-1/2"]
[ECO "D26"]
[WhiteElo "1570"]
[BlackElo "1660"]
[Annotator "NA"]
[PlyCount "100"]
[EventDate "2022.03.12"]
[EventType "swiss"]
[EventCountry "CZE"]
[SourceTitle "playchess.com"]
[Source "ChessBase"]
[SourceQuality "1"]
[TimeControl "40/5400+30:1800+30"]

1. d4 {[%emt 0:00:17]} d5 {[%emt 0:00:11]} 2. Nf3 {[%emt 0:00:12]} Nf6 {[%emt 0:00:12]} 3. c4 {[%emt 0:00:22]} dxc4 {[%emt 0:01:52]} 4. e3 {[%emt 0:00:42]} e6 {[%emt 0:02:02]} 5. Bxc4 {[%emt 0:00:09]} c5 {[%emt 0:00:15]} 6. O-O {[%emt 0:00:34]} Nc6 {[%emt 0:00:30]} 7. Qe2 {[%emt 0:01:13]} cxd4 {[%emt 0:09:16]} 8. Rd1 {[%emt 0:00:15]} Be7 {[%emt 0:09:29]} 9. exd4 {[%emt 0:01:31]} O-O {[%emt 0:02:14]} 10. Nc3 {[%emt 0:01:27]} Nb4 {[%emt 0:20:50]} 11. Ne5 {[%emt 0:05:34]} Nbd5 {[%emt 0:09:55]} 12. Qf3 {[%emt 0:13:19]} a6 {[%emt 0:14:03]} 13. a4 {[%emt 0:02:19]} Qa5 {[%emt 0:04:27]} 14. Bd2 {[%emt 0:11:54]} Bb4 {[%emt 0:03:04]} 15. Bd3 {[%emt 0:05:36]} Qb6 {[%emt 0:11:45]} 16. Be1 {[%emt 0:04:06]} Bd6 {[%emt 0:01:09]} 17. Nc4 {[%emt 0:12:04]} Qc7 {[%emt 0:00:08]} 18. Nxd6 {[%emt 0:00:15]} Qxd6 {[%emt 0:00:06]} 19. Bd2 {[%emt 0:04:35]} Bd7 {[%emt 0:00:30]} 20. Bg5 {[%emt 0:09:42]} h6 {[%emt 0:04:00]} 21. Bd2 {[%emt 0:00:16]} Bc6 {[%emt 0:00:25]} 22. Qg3 {[%emt 0:01:33]} Qxg3 {[%emt 0:00:07]} 23. hxg3 {[%emt 0:00:09]} Rfd8 {[%emt 0:01:04]} 24. Nxd5 {[%emt 0:05:26]} Bxd5 {[%emt 0:00:41]} 25. Ba5 {[%emt 0:04:12]} Rd6 {[%emt 0:00:55]} 26. Bb4 {[%emt 0:00:31]} Rd7 {[%emt 0:01:14]} 27. a5 {[%emt 0:01:30]} Bc6 {[%emt 0:01:30]} 28. Ra3 {[%emt 0:05:21]} Rad8 {[%emt 0:00:55]} 29. Bc5 {[%emt 0:00:14]} Rd5 {[%emt 0:00:50]} 30. Bb6 {[%emt 0:01:32]} Rc8 {[%emt 0:00:08]} 31. Rc3 {[%emt 0:01:10]} Rg5 {[%emt 0:00:45]} 32. Bf1 {[%emt 0:01:36]} Nd5 {[%emt 0:00:35]} 33. Rc2 {[%emt 0:00:52]} Nxb6 {[%emt 0:00:14]} 34. axb6 {[%emt 0:00:04]} Rd8 {[%emt 0:00:10]} 35. Rcd2 {[%emt 0:04:21]} Bb5 {[%emt 0:00:39]} 36. Rc1 {[%emt 0:01:58]} Bxf1 {[%emt 0:00:13]} 37. Kxf1 {[%emt 0:00:07]} Rb5 {[%emt 0:00:04]} 38. Ke2 {[%emt 0:01:48]} Rxb6 {[%emt 0:00:08]} 39. Ke3 {[%emt 0:00:04]} Kh7 {[%emt 0:01:59]} 40. Rc7 {[%emt 0:00:46]} Kg6 {[%emt 0:00:06]} 41. Rdc2 {[%emt 0:30:26]} Rb3+ {[%emt 0:31:34]} 42. R7c3 {[%emt 0:00:00]} Rb4 {[%emt 0:00:00]} 43. Rc4 {[%emt 0:00:00]} Rxc4 {[%emt 0:00:00]} 44. Rxc4 {[%emt 0:00:00]} Rd6 {[%emt 0:00:00]} 45. b4 {[%emt 0:00:00]} Kf6 {[%emt 0:00:00]} 46. Rc2 {[%emt 0:00:00]} Ke7 {[%emt 0:00:00]} 47. b5 {[%emt 0:00:00]} a5 {[%emt 0:00:00]} 48. Rc7+ {[%emt 0:00:00]} Rd7 {[%emt 0:00:00]} 49. Rc8 {[%emt 0:00:00]} Kd6 {[%emt 0:00:00]} 50. b6 {[%emt 0:00:00]} Kd5 {[%emt 0:03:04]} 1/2-1/2